bitfinex/quotes_SOLUSD_20240612
["timestamp","ask_amount","ask_price","bid_price","bid_amount"]
[1718221662968,106.63444605,152.87,152.73,2.4225]
[1718221663173,106.63444605,152.87,152.68,0.262]
[1718221663381,6.63444605,152.87,152.7,9.6916]
[1718221663666,9.6919,152.9,152.72,0.17]
[1718221663867,6.6243169,152.91,152.75,21.3335]
[1718221664061,100.0,152.9,152.75,21.3335]
[1718221664265,100.0,152.87,152.75,21.3335]
[1718221664577,100.0,152.88,152.75,21.3335]
[1718221664950,100.0,152.89,152.7,9.6919]
[1718221665159,100.0,152.87,152.68,5.1085]
[1718221665475,100.0,152.85,152.68,0.262]
[1718221665767,100.0,152.86,152.73,2.4225]
[1718221665977,6.6243169,152.91,152.8,2.4213]
[1718221666164,26.178581,152.96,152.82,2.4211]
[1718221666165,100.0,152.95,152.82,2.4211]
[1718221666349,100.0,152.97,152.81,2.4212]
[1718221666547,100.0,153.02,152.75,28.38]
[1718221666548,100.0,152.91,152.75,28.38]
[1718221666749,119.54,152.93,152.78,2.4216]
[1718221666981,119.54,152.93,152.73,30.1019]
[1718221666982,100.0,152.86,152.73,30.1019]
[1718221667261,100.0,152.91,152.73,30.1019]
[1718221667460,100.0,152.93,152.73,30.1019]
[1718221667649,100.0,152.89,152.73,34.9468]
[1718221667860,106.62117704,152.95,152.81,2.4212]
[1718221668080,106.62117704,152.95,152.82,2.4211]
[1718221668380,100.0,152.94,152.8,2.4213]
[1718221668665,16.30997704,152.95,152.73,230.1019]
[1718221668872,19.54,152.97,152.78,28.38]
[1718221669065,100.0,152.96,152.79,4.8432]
[1718221669269,6.62048936,152.95,152.83,2.4208]
[1718221669468,100.0,152.95,152.78,0.17]
[1718221669647,26.170943,152.99,152.78,0.34]
[1718221669855,19.54,152.99,152.84,4.8416]
[1718221670051,100.0,152.89,152.65,4.8475]
[1718221670273,100.0,152.89,152.76,2.422]
[1718221670470,100.0,152.87,152.73,32.5244]
[1718221670681,100.0,152.89,152.73,30.1019]
[1718221670981,100.0,152.86,152.73,30.1019]
[1718221671180,20.0,152.85,152.73,30.1019]
[1718221671498,0.17,152.84,152.73,32.5243]
[1718221671784,0.17,152.85,152.73,30.1019]
[1718221672088,19.54,152.85,152.73,30.1019]
[1718221672265,20.68,152.84,152.73,30.1019]
[1718221672463,20.0,152.83,152.75,2.4222]
[1718221672689,0.17,152.83,152.73,30.1019]
[1718221672885,19.54,152.82,152.73,30.1019]
[1718221673083,39.54,152.81,152.73,30.1019]
[1718221673380,20.0,152.83,152.73,30.1019]
[1718221673857,0.17,152.82,152.73,30.1019]
[1718221674058,19.54,152.84,152.73,30.1019]
[1718221674257,23.02495415,152.98,152.73,30.1019]
[1718221674258,100.0,152.92,152.79,2.4216]
[1718221674472,100.0,152.92,152.77,2.4217]
[1718221674689,100.0,152.92,152.73,30.1019]
[1718221674872,19.54,152.91,152.74,45.34]
[1718221675187,19.54,152.89,152.74,45.0]
[1718221675388,100.0,152.89,152.74,45.0]
[1718221675564,100.0,152.88,152.73,30.1019]
[1718221675757,10.0,152.93,152.73,30.1019]
[1718221675758,100.0,152.9,152.73,30.1019]
[1718221675956,19.54,152.89,152.73,30.1019]
[1718221676378,100.0,152.92,152.74,7.267]
[1718221676559,0.51,152.91,152.73,30.1019]
[1718221676767,0.17,152.89,152.73,30.1019]
[1718221676986,0.17,152.84,152.74,45.0]
[1718221677188,19.54,152.85,152.76,2.4219]
[1718221677385,19.54,152.85,152.74,45.0]
[1718221677697,0.17,152.86,152.73,30.1019]
[1718221677698,19.54,152.82,152.73,30.1019]
[1718221678197,0.17,152.8,152.73,30.1019]
[1718221678375,0.17,152.79,152.73,30.1019]
[1718221678566,0.17,152.8,152.73,30.1019]
[1718221678771,20.0,152.81,152.73,30.1019]
[1718221678988,100.0,152.9,152.73,30.1019]
[1718221679187,100.0,152.92,152.79,2.4215]
[1718221679489,100.0,152.94,152.73,58.4819]
[1718221679697,100.0,152.92,152.73,58.4819]
[1718221679878,19.54,152.94,152.74,0.34]
[1718221680212,19.54,152.91,152.74,45.0]
[1718221680494,19.54,152.89,152.74,45.0]
[1718221680667,119.54,152.86,152.73,30.1019]
[1718221680866,19.54,152.86,152.73,30.1019]
[1718221681265,19.54,152.86,152.74,2.4222]
[1718221681470,119.54,152.86,152.73,30.1019]
[1718221681674,19.54,152.82,152.73,30.1019]
[1718221681878,20.17,152.85,152.73,30.1019]
[1718221682076,0.17,152.81,152.73,30.1019]
[1718221682306,0.17,152.76,152.68,0.262]
[1718221682469,20.0,152.85,152.73,2.4224]
[1718221682790,20.0,152.85,152.68,5.1084]
[1718221682791,40.0,152.85,152.68,5.1084]
[1718221682966,20.0,152.84,152.71,4.8456]
[1718221683166,100.0,152.88,152.7,28.38]
[1718221683391,7.2695,152.9,152.83,2.4209]
[1718221683604,7.2695,152.9,152.77,21.7274]
[1718221683605,7.2695,152.9,152.81,4.8425]
[1718221683885,19.54,153.0,152.87,2.4203]
[1718221684097,100.0,153.01,152.86,2.4203]
[1718221684299,100.0,152.89,152.77,21.7274]
[1718221684498,100.0,152.89,152.59,36.63191066]
[1718221684499,100.0,152.83,152.7,22.4784]
[1718221684791,100.0,152.81,152.7,31.4728]
[1718221684998,19.54,152.78,152.7,31.4728]
[1718221685320,19.54,152.72,152.63,9.1687]
[1718221685509,19.71,152.69,152.68,0.082]
[1718221685683,19.71,152.62,152.58,0.04076138]
[1718221685889,100.0,152.6,152.58,0.04076138]
[1718221686097,128.38,152.67,152.58,0.04076138]
[1718221686098,100.0,152.59,152.58,0.04076138]
[1718221686291,120.34,152.59,152.57,0.20645512]
[1718221686557,100.0,152.53,152.38,2.428]
[1718221686813,100.0,152.53,152.31,1.11787433]
[1718221686814,120.17,152.53,152.31,1.11787433]
[1718221687025,100.0,152.47,152.31,2.4291]
[1718221687200,20.17,152.46,152.23,8.7645]
[1718221687389,20.17,152.46,152.27,28.67]
[1718221687584,120.0,152.46,152.32,2.429]
[1718221687818,20.0,152.46,152.31,28.67]
[1718221688108,20.0,152.5,152.31,28.67]
[1718221688315,100.0,152.56,152.35,28.67]
[1718221688613,0.17,152.55,152.39,21.9632]
[1718221688927,100.0,152.63,152.42,4.8549]
[1718221689137,100.0,152.68,152.45,28.67]
[1718221689336,128.67,152.72,152.44,100.0]
[1718221689337,100.0,152.63,152.44,28.67]
[1718221689534,100.0,152.65,152.45,45.68]
[1718221689824,100.0,152.68,152.46,0.17]
[1718221690038,6.78874562,152.73,152.45,45.0]
[1718221690039,100.0,152.65,152.45,45.0]
[1718221690201,100.0,152.61,152.45,45.0]
[1718221690402,100.0,152.62,152.4,37.904]
[1718221690602,100.0,152.67,152.41,200.17]
[1718221690825,100.0,152.66,152.45,28.67]
[1718221691008,100.0,152.68,152.46,5.0235]
[1718221691334,128.67,152.72,152.52,4.8517]
[1718221691335,100.0,152.72,152.52,4.8517]
[1718221691500,100.0,152.68,152.51,28.67]
[1718221691698,100.0,152.72,152.52,45.0]
[1718221691905,100.0,152.68,152.46,7.2802]
[1718221692113,100.0,152.7,152.55,2.4254]
[1718221692428,100.0,152.68,152.47,26.24]
[1718221692627,6.78874562,152.73,152.49,2.4263]
[1718221692628,100.0,152.64,152.49,2.4263]
[1718221692811,100.0,152.62,152.4,35.474]
[1718221693135,26.231849,152.65,152.43,210.0]
[1718221693306,6.78874562,152.73,152.49,110.0]
[1718221693507,100.0,152.79,152.57,26.24]
[1718221693838,100.0,152.79,152.61,126.24]
[1718221693839,26.21031,152.79,152.61,126.24]
[1718221694028,100.0,152.78,152.58,0.17]
[1718221694205,119.54,152.78,152.58,0.51]
[1718221694535,106.78037969,152.79,152.65,2.4237]
[1718221694536,6.78037969,152.79,152.65,2.4237]
[1718221694739,6.78037969,152.79,152.59,4.8493]
[1718221694740,100.0,152.79,152.59,0.51]
[1718221694904,100.0,152.85,152.62,100.0]
[1718221695109,52.446571,152.87,152.66,26.41]
[1718221695110,6.77873079,152.84,152.66,26.41]
[1718221695408,100.0,152.86,152.68,8.9104]
[1718221695624,26.206571,152.87,152.7,0.17]
[1718221695827,100.0,152.85,152.69,37.48089307]
[1718221696004,17.29003525,152.86,152.68,9.0804]
[1718221696005,100.0,152.81,152.68,8.9104]
[1718221696212,25.66173921,152.86,152.68,8.9104]
[1718221696213,119.54,152.77,152.68,8.9104]
[1718221696513,36.17524255,152.76,152.61,0.17]
[1718221696724,36.17524255,152.76,152.63,0.17]
[1718221696923,26.206571,152.87,152.73,2.4225]
[1718221697147,26.206571,152.87,152.7,0.17]
[1718221697148,45.746571,152.87,152.7,0.17]
[1718221697349,45.746571,152.87,152.7,0.34]
[1718221697648,126.206571,152.87,152.69,0.17]
[1718221697823,100.0,152.84,152.7,22.00390082]
[1718221698022,100.0,152.84,152.55,10.0]
[1718221698023,26.206571,152.87,152.71,22.00390082]
[1718221698333,19.54,152.86,152.72,12.57365761]
[1718221698546,19.54,152.84,152.73,22.00390082]
[1718221698754,100.0,152.85,152.73,22.00390082]
[1718221698755,19.54,152.82,152.74,12.57365761]
[1718221699055,100.0,152.8,152.63,26.24]
[1718221699219,100.0,152.8,152.56,26.24]
[1718221699220,19.54,152.77,152.56,26.24]
[1718221699554,26.20401,152.8,152.59,100.0]
[1718221699766,20.0,152.79,152.63,100.0]
[1718221700051,100.0,152.91,152.67,26.24]
[1718221700217,18.8626944,152.88,152.7,9.3894]
[1718221700423,18.8626944,152.87,152.76,126.24]
[1718221701670,8.4036,153.0,152.78,100.0]
[1718221701847,8.4036,153.0,152.73,100.0]
[1718221701848,128.019299,153.0,152.82,0.17]
[1718221702051,100.0,152.97,152.83,12.56399398]
[1718221702269,28.019299,153.0,152.84,12.56399398]
[1718221702442,28.019299,153.0,152.81,0.34]
[1718221702443,26.167699,153.0,152.85,22.66845436]
[1718221702642,26.167699,153.0,152.87,26.41]
[1718221702842,26.167699,153.0,152.89,0.17]
[1718221703109,26.167699,153.0,152.85,9.93446038]
[1718221703110,26.167699,153.0,152.9,21.98845436]
[1718221703357,100.0,153.07,152.91,12.56399398]
[1718221703574,100.0,152.99,152.92,12.56399398]
[1718221703867,100.0,152.99,152.93,12.55833422]
[1718221704081,100.0,152.99,152.81,9.41875067]
[1718221704082,100.0,152.94,152.81,9.41875067]
[1718221704280,26.24,152.99,152.72,9.165]
[1718221704281,100.0,152.86,152.72,9.165]
[1718221704455,100.0,152.82,152.68,23.1486]
[1718221704663,0.17,152.79,152.64,26.179519]
[1718221704887,100.0,152.74,152.64,26.179519]
[1718221705092,100.0,152.76,152.58,22.0552]
[1718221705262,0.17,152.71,152.58,22.0552]
[1718221705465,20.0,152.71,152.58,22.0552]
[1718221705773,20.0,152.71,152.48,22.0552]
[1718221705774,119.54,152.66,152.48,22.0552]
[1718221705962,48.48904836,152.65,152.48,22.0552]
[1718221706164,0.17,152.63,152.48,22.0552]
[1718221706381,20.0,152.63,152.48,22.0552]
[1718221706696,100.17,152.62,152.48,22.0552]
[1718221706996,20.0,152.63,152.48,22.0552]
[1718221707559,20.0,152.64,152.48,22.0552]
[1718221707766,0.17,152.61,152.48,22.0552]
[1718221707963,20.68,152.61,152.48,22.0552]
[1718221708156,35.26503854,152.7,152.48,22.0552]
[1718221708157,100.0,152.76,152.48,22.0552]
[1718221708364,26.24,152.75,152.48,22.0552]
[1718221708659,100.0,152.72,152.48,22.0552]
[1718221708862,100.0,152.78,152.55,100.0]
[1718221709070,28.4328,152.81,152.55,100.0]
[1718221709071,100.0,152.75,152.56,7.86652075]
[1718221709287,8.8928,152.81,152.56,7.86652075]
[1718221709288,100.0,152.77,152.56,7.86652075]
[1718221709465,100.0,152.77,152.57,7.86652075]
[1718221709666,100.0,152.82,152.58,7.86652075]
[1718221709886,100.0,152.79,152.6,0.17]
[1718221710187,100.0,152.79,152.61,12.5864332]
[1718221710188,100.0,152.77,152.61,12.5864332]
[1718221710494,100.0,152.74,152.62,7.86652075]
[1718221710673,100.0,152.76,152.63,7.86652075]
[1718221710989,100.0,152.74,152.5,106.552]
[1718221711191,100.0,152.78,152.54,100.0]
[1718221711397,100.0,152.82,152.61,26.24]
[1718221711588,100.0,152.83,152.64,0.17]
[1718221711775,100.0,152.83,152.66,0.17]
[1718221712090,126.24,152.87,152.66,0.68]
[1718221712292,100.0,152.84,152.67,0.17]
[1718221712482,26.24,152.87,152.67,0.17]
[1718221712686,100.0,152.81,152.65,23.2328]
[1718221712991,19.54,152.79,152.65,23.2328]
[1718221713367,26.24,152.87,152.66,0.17]
[1718221713368,100.0,152.86,152.66,0.17]
[1718221713568,10.0,152.91,152.66,20.17]
[1718221713569,100.0,152.84,152.66,20.17]
[1718221713772,100.0,152.82,152.65,23.2328]
[1718221714101,19.54,152.81,152.65,23.2328]
[1718221714464,19.54,152.81,152.66,0.68]
[1718221714777,100.0,152.89,152.66,20.68]
[1718221715097,100.0,152.97,152.68,110.17]
[1718221715281,22.43234309,153.08,152.73,26.41]
[1718221715282,100.0,152.94,152.73,26.41]
[1718221715479,100.0,152.94,152.75,0.17]
[1718221715867,6.77410042,152.96,152.75,0.17]
[1718221716069,100.0,152.91,152.75,0.17]
[1718221716291,6.77410042,152.96,152.75,0.17]
[1718221716479,6.77410042,152.96,152.75,0.34]
[1718221716671,100.0,152.99,152.77,0.17]
[1718221716881,100.0,153.0,152.79,0.17]
[1718221717085,100.0,153.0,152.79,20.68]
[1718221717086,6.77295702,152.99,152.79,20.68]
[1718221717492,100.0,153.0,152.81,0.17]
[1718221717702,106.77189053,153.0,152.81,20.68]
[1718221717868,106.77189053,153.0,152.8,23.6629]
[1718221717869,100.0,152.97,152.8,23.6629]
[1718221718066,100.0,152.99,152.81,0.17]
[1718221718294,100.0,152.97,152.81,0.34]
[1718221718484,6.77189053,153.0,152.81,0.17]
[1718221718673,100.0,152.99,152.8,23.6629]
[1718221718996,100.0,152.97,152.8,23.6629]
[1718221719296,100.0,152.95,152.8,23.6629]
[1718221719499,6.77144683,152.99,152.8,23.6629]
[1718221719500,106.77144683,152.99,152.8,23.6629]
[1718221719671,100.0,152.97,152.8,23.6629]
[1718221720079,100.0,153.01,152.81,20.0]
[1718221720278,100.0,153.03,152.81,20.0]
[1718221720480,100.0,153.02,152.82,0.51]
[1718221720816,106.76863424,153.02,152.82,0.68]
[1718221721112,6.76863424,153.02,152.82,0.68]
[1718221721278,100.0,153.06,152.86,0.17]
[1718221721596,6.76692566,153.04,152.86,21.98654628]
[1718221721781,6.76692566,153.04,152.86,0.51]
[1718221721982,6.76692566,153.04,152.86,20.34]
[1718221722205,6.76692566,153.04,152.87,0.17]
[1718221722500,6.76692566,153.04,152.87,0.51]
[1718221722677,100.0,153.01,152.81,26.24]
[1718221722999,100.0,152.94,152.8,23.6629]
[1718221723225,100.0,152.98,152.8,23.6629]
[1718221723705,100.0,152.93,152.8,23.6629]
[1718221723904,100.0,152.85,152.69,8.5827]
[1718221724108,100.0,152.81,152.69,8.5827]
[1718221724398,19.71,152.74,152.6,9.2281]
[1718221724612,0.17,152.71,152.6,9.2281]
[1718221724807,0.17,152.72,152.6,9.2281]
[1718221724970,0.17,152.7,152.6,9.2281]
[1718221725169,120.05,152.71,152.6,9.2281]
[1718221725397,39.54,152.7,152.6,9.2281]
[1718221725603,20.0,152.7,152.6,9.2281]
[1718221726011,20.17,152.71,152.6,9.2281]
[1718221726177,0.17,152.7,152.6,9.2281]
[1718221726378,20.0,152.71,152.6,9.2281]
[1718221726571,20.0,152.73,152.6,9.2281]
[1718221726987,20.34,152.74,152.6,9.2281]
[1718221727210,19.54,152.73,152.6,9.2281]
[1718221727413,0.17,152.71,152.6,9.2281]
[1718221727712,39.71,152.72,152.6,9.2281]
[1718221727916,20.17,152.72,152.6,9.2281]
[1718221728103,20.0,152.76,152.6,9.2281]
[1718221728294,120.0,152.76,152.6,9.2281]
[1718221728818,100.0,152.77,152.6,9.2281]
[1718221729114,100.0,152.79,152.6,9.2281]
[1718221729288,19.54,152.77,152.61,0.17]
[1718221729488,100.0,152.8,152.61,0.34]
[1718221729706,100.0,152.8,152.61,20.51]
[1718221730295,119.54,152.81,152.61,20.51]
[1718221730490,19.54,152.78,152.62,0.17]
[1718221730694,19.54,152.78,152.62,0.34]
[1718221730899,19.54,152.78,152.63,0.17]
[1718221731335,100.0,152.77,152.6,9.2281]
[1718221731619,0.17,152.73,152.6,9.2281]
[1718221731790,19.54,152.74,152.6,9.2281]
[1718221731987,39.71,152.73,152.6,9.2281]
[1718221732206,19.54,152.71,152.6,9.2281]
[1718221732394,20.0,152.7,152.6,9.2281]
[1718221732909,100.0,152.78,152.6,9.2281]
[1718221733094,20.0,152.76,152.6,9.2281]
[1718221733615,19.54,152.78,152.62,0.17]
[1718221734617,19.54,152.8,152.62,0.17]
[1718221735124,19.54,152.8,152.6,152.801603]
[1718221735125,19.54,152.76,152.6,152.801603]
[1718221735424,19.54,152.74,152.6,152.801603]
[1718221735917,19.54,152.76,152.6,152.801603]
[1718221736100,139.88,152.75,152.6,152.801603]
[1718221736305,0.17,152.74,152.6,152.801603]
[1718221736517,39.54,152.75,152.6,152.801603]
[1718221737425,100.0,152.78,152.6,152.801603]
[1718221737595,26.24,152.69,152.6,143.573503]
[1718221737798,100.0,152.64,152.6,143.573503]
[1718221738102,26.24,152.7,152.6,143.573503]
[1718221738103,100.0,152.62,152.6,143.573503]
[1718221738498,0.17,152.63,152.6,143.573503]
[1718221738697,100.0,152.61,152.6,143.573503]
[1718221738891,100.0,152.61,152.6,141.66347018]
[1718221738892,165.68,152.61,152.6,141.66347018]
[1718221739091,120.68,152.61,152.6,141.66347018]
[1718221739409,165.68,152.61,152.6,141.66347018]
[1718221739715,120.68,152.61,152.6,141.66347018]
[1718221739896,20.0,152.61,152.6,141.66347018]
[1718221740116,120.68,152.61,152.6,141.66347018]
[1718221740396,20.17,152.61,152.6,141.66347018]
[1718221740595,100.0,152.67,152.6,141.66347018]
[1718221740809,100.0,152.72,152.6,141.66347018]
[1718221741106,100.0,152.75,152.6,141.66347018]
[1718221741306,100.0,152.75,152.61,9.6958]
[1718221741521,100.0,152.77,152.61,9.6958]
[1718221741747,100.0,152.75,152.61,9.6958]
[1718221742048,100.0,152.77,152.61,9.6958]
[1718221742552,132.97315787,152.82,152.64,0.17]
[1718221742857,126.24,152.88,152.64,20.68]
[1718221743037,100.0,152.88,152.64,20.68]
[1718221743228,100.0,152.85,152.64,20.68]
[1718221743845,106.76839299,152.88,152.64,20.68]
[1718221744145,100.0,152.88,152.64,20.68]
[1718221744350,106.76754322,152.88,152.64,120.68]
[1718221745650,100.0,152.96,152.82,8.9861]
[1718221745840,106.76616097,152.96,152.82,8.9861]
[1718221746025,6.76616097,152.96,152.82,8.9861]
[1718221746231,100.0,152.96,152.82,8.9861]
[1718221746746,106.76691743,152.98,152.82,8.9861]
[1718221746951,100.0,152.98,152.82,8.9861]
[1718221747132,100.0,153.01,152.83,0.34]
[1718221747453,100.0,152.99,152.83,0.34]
[1718221747753,23.7493,153.0,152.84,0.34]
[1718221748050,6.76334882,153.01,152.85,0.34]
[1718221748243,6.76334882,153.01,152.82,8.9861]
[1718221748244,100.0,152.98,152.82,8.9861]
[1718221748558,9.1561,153.0,152.83,0.17]
[1718221748851,100.0,152.96,152.82,8.9861]
[1718221749027,100.0,152.99,152.83,0.17]
[1718221749226,100.0,152.99,152.82,8.9861]
[1718221749445,9.1561,153.0,152.83,0.34]
[1718221749756,26.24,153.05,152.83,0.34]
[1718221749757,100.0,153.03,152.83,0.34]
[1718221749922,126.24,153.05,152.85,0.17]
[1718221750130,126.24,153.05,152.85,0.34]
[1718221750325,6.76202271,153.04,152.86,0.17]
[1718221750561,6.76202271,153.04,152.87,0.17]
[1718221750871,100.0,152.97,152.82,8.9861]
[1718221751046,26.24,153.02,152.82,8.9861]
[1718221751236,100.0,152.99,152.82,8.9861]
[1718221751435,100.0,153.01,152.82,8.9861]
[1718221751740,0.17,152.98,152.82,8.9861]
[1718221751948,20.17,152.98,152.82,8.9861]
[1718221752259,120.17,152.98,152.82,8.9861]
[1718221752425,20.0,152.97,152.82,8.9861]
[1718221752752,0.17,152.96,152.82,8.9861]
[1718221752976,20.0,152.97,152.82,8.9861]
[1718221753144,20.0,152.99,152.82,8.9861]
[1718221753481,100.0,153.02,152.82,8.9861]
[1718221753766,100.0,152.98,152.82,8.9861]
[1718221753971,100.0,153.01,152.82,8.9861]
[1718221754157,100.0,152.99,152.82,8.9861]
[1718221754770,100.0,152.97,152.82,8.9861]
[1718221754969,0.51,152.98,152.82,8.9861]
[1718221755471,20.51,152.98,152.82,8.9861]
[1718221755683,20.0,152.98,152.83,0.51]
[1718221755861,20.0,153.0,152.83,0.51]
[1718221756955,0.17,152.99,152.83,0.51]
[1718221757457,0.51,152.99,152.83,0.51]
[1718221757763,20.0,153.0,152.83,0.51]
[1718221758363,33.00202271,153.04,152.82,8.9861]
[1718221758364,100.0,152.99,152.82,8.9861]
[1718221758668,100.17,152.98,152.82,8.9861]
[1718221758848,0.17,152.97,152.82,8.9861]
[1718221759256,0.34,152.97,152.82,8.9861]
[1718221759466,133.00202271,153.04,152.82,8.9861]
[1718221759776,133.00202271,153.04,152.83,0.17]
[1718221759947,100.0,153.02,152.83,0.17]
[1718221760148,100.0,153.0,152.83,0.34]
[1718221760352,119.54,153.0,152.82,8.9861]
[1718221760567,100.0,153.0,152.83,0.17]
[1718221760776,106.76933678,153.0,152.83,0.17]
[1718221760969,6.76933678,153.0,152.83,0.51]
[1718221761280,6.76933678,153.0,152.84,0.34]
[1718221761577,6.76933678,153.0,152.85,0.51]
[1718221761776,106.76933678,153.0,152.83,0.17]
[1718221761956,100.0,152.99,152.82,8.9861]
[1718221762152,6.76933678,153.0,152.82,8.9861]
[1718221762556,20.0,152.99,152.82,8.9861]
[1718221762991,6.76933678,153.0,152.82,8.9861]
[1718221763286,6.76933678,153.0,152.82,208.9861]
[1718221763489,100.0,153.06,152.84,0.17]
[1718221763871,6.77699669,153.04,152.84,0.17]
[1718221764580,6.77699669,153.04,152.84,100.17]
[1718221764763,100.0,153.06,152.86,0.17]
[1718221764963,100.0,153.03,152.86,0.17]
[1718221765166,100.0,152.99,152.82,8.9861]
[1718221765400,126.24,153.0,152.82,8.9861]
[1718221765695,100.0,152.93,152.82,8.9861]
[1718221765988,0.17,152.88,152.76,9.2797]
[1718221766189,0.17,152.82,152.73,23.5608]
[1718221766400,0.17,152.8,152.73,23.5608]
[1718221766719,100.0,152.8,152.73,23.5608]
[1718221766858,20.17,152.79,152.69,9.2797]
[1718221767064,20.0,152.79,152.69,9.2797]
[1718221767676,19.54,152.75,152.69,9.2797]
[1718221767879,100.0,152.76,152.69,9.2797]
[1718221767880,20.0,152.74,152.7,12.57891688]
[1718221768091,100.0,152.85,152.71,7.86182305]
[1718221768410,100.0,152.85,152.69,9.2797]
[1718221768411,100.0,152.87,152.72,7.86182305]
[1718221768704,10.0,152.91,152.73,7.86182305]
[1718221768705,19.54,152.91,152.73,7.86182305]
[1718221768901,5.17301898,152.97,152.74,24.322]
[1718221769104,26.24,153.04,152.75,109.7046]
[1718221769105,100.0,153.01,152.75,109.7046]
[1718221769405,26.24,153.04,152.75,109.7046]
[1718221769406,100.0,153.03,152.78,100.0]
[1718221769726,26.24,153.04,152.81,0.17]
[1718221769956,19.54,152.98,152.81,0.51]
[1718221770212,26.24,153.04,152.82,0.17]
[1718221770213,100.0,153.01,152.82,0.17]
[1718221770421,100.0,152.98,152.8,9.7046]
[1718221770590,100.0,152.98,152.81,0.51]
[1718221770782,19.54,153.03,152.81,0.51]
[1718221770990,19.54,153.03,152.82,0.34]
[1718221771208,19.54,153.03,152.84,0.17]
[1718221771505,19.54,153.03,152.84,0.34]
[1718221771679,119.54,153.01,152.85,0.34]
[1718221772010,119.54,153.01,152.8,9.7046]
[1718221772011,19.54,152.96,152.8,9.7046]
[1718221772178,26.24,152.99,152.8,9.7046]
[1718221772179,45.78,152.99,152.8,9.7046]
[1718221772383,20.0,152.98,152.8,9.7046]
[1718221773104,19.54,153.02,152.81,100.0]
[1718221773283,19.54,152.97,152.8,9.7046]
[1718221773485,6.78548743,153.07,152.8,9.7046]
[1718221773486,26.24,152.99,152.8,9.7046]
[1718221773699,100.0,153.01,152.8,9.7046]
[1718221774104,102.616025,153.05,152.8,109.7046]
[1718221774311,19.54,153.03,152.84,100.0]
[1718221774612,19.54,153.03,152.82,100.0]
[1718221774613,2.616025,153.05,152.89,0.17]
[1718221774914,2.616025,153.05,152.89,0.51]
[1718221775683,2.616025,153.05,152.9,0.17]
[1718221775884,2.616025,153.05,152.9,0.34]
[1718221776484,2.616025,153.05,152.91,0.17]
[1718221776683,2.616025,153.05,152.91,0.34]
[1718221777093,22.156025,153.05,152.91,0.17]
[1718221777293,19.54,153.02,152.88,8.9145]
[1718221777512,22.156025,153.05,152.88,8.9145]
[1718221777685,20.34,153.04,152.88,8.9145]
[1718221777888,100.0,152.99,152.83,24.2644]